[Event "Titled Tuesday Blitz May 9 Early 2023"]
[White "Volkov, Maksim"]
[Black "Senft, Sean"]
[WhiteFideId "54123070"]
[BlackFideId "2044960"]
[WhiteElo "2297"]
[BlackElo "1989"]
[Result "1-0"]
[Round "01"]
[TimeControl "180+2"]
[Date "2023.05.09"]
[WhiteClock "0:01:00"]
[BlackClock "0:00:17"]

1. d4 {[%clk 0:02:58]}  d5 {[%clk 0:02:59]} 2. c4 {[%clk 0:02:58]}  c6 {[%clk 0:02:59]} 3. Nf3 {[%clk 0:02:59]}  Nf6 {[%clk 0:03:00]} 4. g3 {[%clk 0:02:59]}  Bf5 {[%clk 0:02:59]} 5. Nc3 {[%clk 0:02:59]}  e6 {[%clk 0:03:00]} 6. Nh4 {[%clk 0:02:59]}  Be4 {[%clk 0:03:00]} 7. f3 {[%clk 0:02:58]}  Bg6 {[%clk 0:03:00]} 8. Qb3 {[%clk 0:02:58]}  Qc8 {[%clk 0:02:55]} 9. Bg2 {[%clk 0:02:43]}  Nbd7 {[%clk 0:02:55]} 10. O-O {[%clk 0:02:35]}  Be7 {[%clk 0:02:52]} 11. cxd5 {[%clk 0:02:31]}  Nxd5 {[%clk 0:02:46]} 12. Nxg6 {[%clk 0:02:28]}  hxg6 {[%clk 0:02:45]} 13. e4 {[%clk 0:02:28]}  Nxc3 {[%clk 0:02:44]} 14. bxc3 {[%clk 0:02:28]}  Nb6 {[%clk 0:02:32]} 15. a4 {[%clk 0:02:25]}  O-O {[%clk 0:02:27]} 16. a5 {[%clk 0:02:24]}  Nd7 {[%clk 0:02:27]} 17. Be3 {[%clk 0:02:23]}  c5 {[%clk 0:02:24]} 18. Rfb1 {[%clk 0:02:19]}  Rb8 {[%clk 0:02:23]} 19. f4 {[%clk 0:02:09]}  c4 {[%clk 0:02:15]} 20. Qa4 {[%clk 0:02:06]}  Rd8 {[%clk 0:01:46]} 21. Kh1 {[%clk 0:01:53]}  Nf6 {[%clk 0:01:41]} 22. Bf3 {[%clk 0:01:46]}  Qc7 {[%clk 0:01:29]} 23. f5 {[%clk 0:01:35]}  gxf5 {[%clk 0:01:23]} 24. Bf4 {[%clk 0:01:35]}  e5 {[%clk 0:01:11]} 25. Bxe5 {[%clk 0:01:31]}  Bd6 {[%clk 0:01:11]} 26. Bxd6 {[%clk 0:01:30]}  Rxd6 {[%clk 0:01:03]} 27. e5 {[%clk 0:01:30]}  Re6 {[%clk 0:00:56]} 28. exf6 {[%clk 0:01:30]}  Re3 {[%clk 0:00:57]} 29. Rf1 {[%clk 0:01:29]}  f4 {[%clk 0:00:57]} 30. Rae1 {[%clk 0:01:23]}  Rxc3 {[%clk 0:00:55]} 31. Re8+ {[%clk 0:01:22]}  Kh7 {[%clk 0:00:48]} 32. Be4+ {[%clk 0:01:19]}  Kh6 {[%clk 0:00:47]} 33. Rxf4 {[%clk 0:01:14]}  Rc1+ {[%clk 0:00:41]} 34. Kg2 {[%clk 0:01:13]}  g5 {[%clk 0:00:41]} 35. Rf2 {[%clk 0:01:02]}  b5 {[%clk 0:00:17]} 36. axb6 {[%clk 0:01:01]}  axb6 {[%clk 0:00:18]} 37. Rxb8 {[%clk 0:01:01]}  Qxb8 {[%clk 0:00:19]} 38. Qd7 {[%clk 0:01:01]}  Qg8 {[%clk 0:00:17]} 39. Qh3# {[%clk 0:01:00]} 1-0


[Site "https://www.chess.com"]

[Event "Titled Tuesday Blitz May 9 Early 2023"]
[White "Khumalo, Keith"]
[Black "Kirillov, Dmitry"]
[WhiteFideId "14319470"]
[BlackFideId "34180572"]
[WhiteElo "2056"]
[BlackElo "2161"]
[Result "1-0"]
[Round "01"]
[TimeControl "180+2"]
[Date "2023.05.09"]
[WhiteClock "0:01:28"]
[BlackClock "0:00:04"]

1. d4 {[%clk 0:03:00]}  d5 {[%clk 0:02:57]} 2. c4 {[%clk 0:02:52]}  e6 {[%clk 0:02:57]} 3. Nf3 {[%clk 0:02:53]}  Nf6 {[%clk 0:02:56]} 4. g3 {[%clk 0:02:53]}  Bb4+ {[%clk 0:02:56]} 5. Bd2 {[%clk 0:02:53]}  Be7 {[%clk 0:02:56]} 6. Bg2 {[%clk 0:02:53]}  O-O {[%clk 0:02:57]} 7. Qc2 {[%clk 0:02:54]}  Nbd7 {[%clk 0:02:56]} 8. O-O {[%clk 0:02:53]}  Ne4 {[%clk 0:02:56]} 9. Nc3 {[%clk 0:02:52]}  Nxc3 {[%clk 0:02:41]} 10. Qxc3 {[%clk 0:02:50]}  c6 {[%clk 0:02:41]} 11. Qc2 {[%clk 0:02:47]}  Bd6 {[%clk 0:02:35]} 12. e4 {[%clk 0:02:46]}  dxe4 {[%clk 0:02:33]} 13. Qxe4 {[%clk 0:02:47]}  Re8 {[%clk 0:02:32]} 14. Rfd1 {[%clk 0:02:44]}  Nf6 {[%clk 0:02:27]} 15. Qe2 {[%clk 0:02:34]}  h6 {[%clk 0:02:27]} 16. Bc3 {[%clk 0:02:32]}  Bd7 {[%clk 0:02:25]} 17. Ne5 {[%clk 0:02:32]}  Rc8 {[%clk 0:02:22]} 18. b4 {[%clk 0:02:30]}  Qe7 {[%clk 0:02:19]} 19. a3 {[%clk 0:02:28]}  b6 {[%clk 0:02:17]} 20. f4 {[%clk 0:02:23]}  c5 {[%clk 0:02:14]} 21. dxc5 {[%clk 0:02:23]}  bxc5 {[%clk 0:02:15]} 22. b5 {[%clk 0:02:24]}  Red8 {[%clk 0:02:05]} 23. Rd2 {[%clk 0:02:19]}  Be8 {[%clk 0:02:03]} 24. Rad1 {[%clk 0:02:16]}  Bc7 {[%clk 0:02:03]} 25. a4 {[%clk 0:02:06]}  Rxd2 {[%clk 0:02:01]} 26. Rxd2 {[%clk 0:02:05]}  Rd8 {[%clk 0:02:02]} 27. Bf3 {[%clk 0:02:05]}  Nh7 {[%clk 0:01:46]} 28. h4 {[%clk 0:02:00]}  f6 {[%clk 0:01:29]} 29. Nc6 {[%clk 0:02:00]}  Bxc6 {[%clk 0:01:29]} 30. Bxc6 {[%clk 0:02:00]}  Nf8 {[%clk 0:01:26]} 31. a5 {[%clk 0:01:58]}  e5 {[%clk 0:01:21]} 32. f5 {[%clk 0:01:54]}  Rd4 {[%clk 0:01:17]} 33. Bxd4 {[%clk 0:01:54]}  cxd4 {[%clk 0:01:18]} 34. b6 {[%clk 0:01:51]}  axb6 {[%clk 0:01:17]} 35. a6 {[%clk 0:01:52]}  Qa3 {[%clk 0:01:15]} 36. Qf3 {[%clk 0:01:37]}  Qxa6 {[%clk 0:00:54]} 37. Qd5+ {[%clk 0:01:37]}  Kh7 {[%clk 0:00:43]} 38. Qf7 {[%clk 0:01:37]}  Qa3 {[%clk 0:00:41]} 39. Rg2 {[%clk 0:01:30]}  d3 {[%clk 0:00:04]} 40. Bd5 {[%clk 0:01:28]}  Qc5+ {[%clk 0:00:04]} 41. Kh2 {[%clk 0:01:29]}  h5 {[%clk 0:00:04]} 42. Qxh5# {[%clk 0:01:28]} 1-0


[Site "https://www.chess.com"]

[Event "Titled Tuesday Blitz May 9 Early 2023"]
[White "Hinds, Nathan"]
[Black "Seemann, Jakub"]
[WhiteFideId "7400730"]
[BlackFideId "21874697"]
[WhiteElo "2001"]
[BlackElo "2364"]
[Result "1-0"]
[Round "01"]
[TimeControl "180+2"]
[Date "2023.05.09"]
[WhiteClock "0:00:11"]
[BlackClock "0:00:03"]

1. Nf3 {[%clk 0:02:59]}  Nf6 {[%clk 0:02:59]} 2. c4 {[%clk 0:02:58]}  c6 {[%clk 0:02:59]} 3. g3 {[%clk 0:02:58]}  d5 {[%clk 0:02:59]} 4. Bg2 {[%clk 0:02:58]}  dxc4 {[%clk 0:02:58]} 5. a4 {[%clk 0:02:57]}  g6 {[%clk 0:02:53]} 6. O-O {[%clk 0:02:57]}  Bg7 {[%clk 0:02:53]} 7. Ne5 {[%clk 0:02:58]}  O-O {[%clk 0:02:53]} 8. Nxc4 {[%clk 0:02:57]}  Nbd7 {[%clk 0:02:52]} 9. Nc3 {[%clk 0:02:57]}  Nb6 {[%clk 0:02:51]} 10. b3 {[%clk 0:02:58]}  Nfd5 {[%clk 0:02:45]} 11. Bb2 {[%clk 0:02:56]}  Nxc4 {[%clk 0:02:44]} 12. bxc4 {[%clk 0:02:56]}  Nxc3 {[%clk 0:02:44]} 13. Bxc3 {[%clk 0:02:52]}  Bxc3 {[%clk 0:02:44]} 14. dxc3 {[%clk 0:02:53]}  Qa5 {[%clk 0:02:40]} 15. Qb3 {[%clk 0:02:50]}  Rb8 {[%clk 0:02:27]} 16. Bxc6 {[%clk 0:02:34]}  Bh3 {[%clk 0:02:04]} 17. Bg2 {[%clk 0:02:31]}  Bxg2 {[%clk 0:02:04]} 18. Kxg2 {[%clk 0:02:32]}  Rfc8 {[%clk 0:02:04]} 19. Rfd1 {[%clk 0:02:27]}  Qc5 {[%clk 0:02:00]} 20. Rd4 {[%clk 0:02:15]}  Qc6+ {[%clk 0:01:53]} 21. Kg1 {[%clk 0:02:09]}  e6 {[%clk 0:01:48]} 22. Rad1 {[%clk 0:02:07]}  Kg7 {[%clk 0:01:48]} 23. Rd7 {[%clk 0:02:05]}  Qxc4 {[%clk 0:01:39]} 24. Qxc4 {[%clk 0:01:42]}  Rxc4 {[%clk 0:01:36]} 25. Re7 {[%clk 0:01:43]}  Rxa4 {[%clk 0:00:58]} 26. Rdd7 {[%clk 0:01:40]}  Rf8 {[%clk 0:00:51]} 27. Rxb7 {[%clk 0:01:38]}  a5 {[%clk 0:00:52]} 28. Rxe6 {[%clk 0:01:27]}  Rc4 {[%clk 0:00:47]} 29. Ra6 {[%clk 0:01:21]}  a4 {[%clk 0:00:32]} 30. e3 {[%clk 0:01:11]}  h5 {[%clk 0:00:25]} 31. h4 {[%clk 0:01:11]}  Rd8 {[%clk 0:00:21]} 32. Raa7 {[%clk 0:01:07]}  Rf8 {[%clk 0:00:21]} 33. Kg2 {[%clk 0:00:55]}  Rxc3 {[%clk 0:00:21]} 34. Rxa4 {[%clk 0:00:54]}  Rc6 {[%clk 0:00:20]} 35. Rf4 {[%clk 0:00:50]}  Rf6 {[%clk 0:00:20]} 36. Rxf6 {[%clk 0:00:50]}  Kxf6 {[%clk 0:00:21]} 37. Rb6+ {[%clk 0:00:51]}  Kg7 {[%clk 0:00:21]} 38. Kf3 {[%clk 0:00:51]}  Ra8 {[%clk 0:00:21]} 39. Rb7 {[%clk 0:00:51]}  Ra2 {[%clk 0:00:20]} 40. Rb4 {[%clk 0:00:44]}  Rc2 {[%clk 0:00:17]} 41. Rd4 {[%clk 0:00:44]}  Kf6 {[%clk 0:00:16]} 42. Rd6+ {[%clk 0:00:44]}  Kg7 {[%clk 0:00:15]} 43. Ra6 {[%clk 0:00:45]}  Rb2 {[%clk 0:00:15]} 44. Ra3 {[%clk 0:00:44]}  Kf6 {[%clk 0:00:13]} 45. Rc3 {[%clk 0:00:44]}  Kg7 {[%clk 0:00:14]} 46. Rd3 {[%clk 0:00:44]}  Kf6 {[%clk 0:00:14]} 47. Rd1 {[%clk 0:00:44]}  Kg7 {[%clk 0:00:15]} 48. Re1 {[%clk 0:00:45]}  Kf6 {[%clk 0:00:15]} 49. Re2 {[%clk 0:00:45]}  Rb3 {[%clk 0:00:15]} 50. Rd2 {[%clk 0:00:45]}  Ra3 {[%clk 0:00:13]} 51. Ke2 {[%clk 0:00:44]}  Ke5 {[%clk 0:00:11]} 52. Rd7 {[%clk 0:00:39]}  Ke6 {[%clk 0:00:11]} 53. Rb7 {[%clk 0:00:38]}  Kf6 {[%clk 0:00:11]} 54. Kf3 {[%clk 0:00:33]}  Ra2 {[%clk 0:00:10]} 55. Rb3 {[%clk 0:00:32]}  Kg7 {[%clk 0:00:10]} 56. Rc3 {[%clk 0:00:32]}  Kf6 {[%clk 0:00:10]} 57. Rd3 {[%clk 0:00:33]}  Kg7 {[%clk 0:00:11]} 58. Rd8 {[%clk 0:00:32]}  Kf6 {[%clk 0:00:11]} 59. Rg8 {[%clk 0:00:33]}  Rb2 {[%clk 0:00:11]} 60. e4 {[%clk 0:00:28]}  Ra2 {[%clk 0:00:09]} 61. Rc8 {[%clk 0:00:26]}  Kg7 {[%clk 0:00:09]} 62. Rc6 {[%clk 0:00:26]}  Rb2 {[%clk 0:00:08]} 63. Ke3 {[%clk 0:00:26]}  Ra2 {[%clk 0:00:08]} 64. f3 {[%clk 0:00:25]}  Rb2 {[%clk 0:00:08]} 65. Kf4 {[%clk 0:00:25]}  Rb3 {[%clk 0:00:08]} 66. Rc2 {[%clk 0:00:25]}  Ra3 {[%clk 0:00:08]} 67. Rd2 {[%clk 0:00:25]}  Kf6 {[%clk 0:00:08]} 68. Rb2 {[%clk 0:00:25]}  Kg7 {[%clk 0:00:08]} 69. Rb6 {[%clk 0:00:23]}  Rc3 {[%clk 0:00:08]} 70. e5 {[%clk 0:00:20]}  Ra3 {[%clk 0:00:06]} 71. Rb7 {[%clk 0:00:15]}  Kf8 {[%clk 0:00:04]} 72. Rb6 {[%clk 0:00:10]}  Kg7 {[%clk 0:00:04]} 73. g4 {[%clk 0:00:09]}  hxg4 {[%clk 0:00:04]} 74. Kxg4 {[%clk 0:00:10]}  Ra4+ {[%clk 0:00:03]} 75. f4 {[%clk 0:00:11]}  Ra1 {[%clk 0:00:04]} 76. Rb7 {[%clk 0:00:11]}  Rg1+ {[%clk 0:00:04]} 77. Kf3 {[%clk 0:00:11]}  Re1 {[%clk 0:00:04]} 78. Kg3 {[%clk 0:00:11]}  Rg1+ {[%clk 0:00:05]} 79. Kf3 {[%clk 0:00:11]}  Rg4 {[%clk 0:00:03]} 80. Kxg4 {[%clk 0:00:11]} 1-0


[Site "https://www.chess.com"]

[Event "Titled Tuesday Blitz May 9 Early 2023"]
[White "Jaracz, Pawel"]
[Black "Manon-og, Ramon Jr."]
[WhiteFideId "1102222"]
[BlackFideId "5200776"]
[WhiteElo "2438"]
[BlackElo "2339"]
[Result "1-0"]
[Round "01"]
[TimeControl "180+2"]
[Date "2023.05.09"]
[WhiteClock "0:00:48"]
[BlackClock "0:00:00"]

1. e4 {[%clk 0:02:53]}  c5 {[%clk 0:02:59]} 2. Nf3 {[%clk 0:02:52]}  d6 {[%clk 0:02:59]} 3. d4 {[%clk 0:02:51]}  cxd4 {[%clk 0:03:00]} 4. Nxd4 {[%clk 0:02:51]}  Nf6 {[%clk 0:03:00]} 5. Nc3 {[%clk 0:02:52]}  a6 {[%clk 0:03:00]} 6. Be2 {[%clk 0:02:51]}  e5 {[%clk 0:02:59]} 7. Nb3 {[%clk 0:02:50]}  Be6 {[%clk 0:02:59]} 8. Bg5 {[%clk 0:02:35]}  Nbd7 {[%clk 0:02:58]} 9. O-O {[%clk 0:02:28]}  Be7 {[%clk 0:02:59]} 10. Bf3 {[%clk 0:02:26]}  O-O {[%clk 0:02:58]} 11. Re1 {[%clk 0:02:25]}  h6 {[%clk 0:02:59]} 12. Bh4 {[%clk 0:02:22]}  Rc8 {[%clk 0:02:58]} 13. Qd3 {[%clk 0:02:05]}  b5 {[%clk 0:02:51]} 14. a3 {[%clk 0:01:56]}  Nc5 {[%clk 0:02:35]} 15. Nxc5 {[%clk 0:01:55]}  dxc5 {[%clk 0:02:35]} 16. Qe2 {[%clk 0:01:52]}  b4 {[%clk 0:02:29]} 17. Nd1 {[%clk 0:01:48]}  a5 {[%clk 0:02:27]} 18. Ne3 {[%clk 0:01:47]}  Qd4 {[%clk 0:02:17]} 19. axb4 {[%clk 0:01:40]}  axb4 {[%clk 0:02:16]} 20. Rab1 {[%clk 0:01:28]}  c4 {[%clk 0:02:14]} 21. Red1 {[%clk 0:01:25]}  Qc5 {[%clk 0:02:14]} 22. Bxf6 {[%clk 0:01:24]}  Bxf6 {[%clk 0:02:14]} 23. Bg4 {[%clk 0:01:25]}  Rfd8 {[%clk 0:01:58]} 24. Bxe6 {[%clk 0:01:24]}  fxe6 {[%clk 0:01:59]} 25. Rxd8+ {[%clk 0:01:22]}  Rxd8 {[%clk 0:01:59]} 26. Nxc4 {[%clk 0:01:21]}  Rd4 {[%clk 0:01:50]} 27. b3 {[%clk 0:01:21]}  Bg5 {[%clk 0:01:46]} 28. g3 {[%clk 0:01:20]}  Qb5 {[%clk 0:01:33]} 29. h4 {[%clk 0:01:18]}  Bf6 {[%clk 0:01:25]} 30. Rd1 {[%clk 0:01:17]}  Qc5 {[%clk 0:01:11]} 31. Rxd4 {[%clk 0:01:15]}  exd4 {[%clk 0:01:12]} 32. e5 {[%clk 0:01:14]}  Be7 {[%clk 0:01:11]} 33. Qe4 {[%clk 0:01:13]}  Qa7 {[%clk 0:01:04]} 34. Kg2 {[%clk 0:01:13]}  Bc5 {[%clk 0:01:00]} 35. Qc6 {[%clk 0:01:08]}  Kf7 {[%clk 0:01:00]} 36. h5 {[%clk 0:01:03]}  d3 {[%clk 0:00:57]} 37. Qf3+ {[%clk 0:01:03]}  Kg8 {[%clk 0:00:56]} 38. cxd3 {[%clk 0:01:03]}  Qd7 {[%clk 0:00:52]} 39. Qe4 {[%clk 0:01:02]}  Qf7 {[%clk 0:00:49]} 40. d4 {[%clk 0:00:55]}  Be7 {[%clk 0:00:00]} 41. Qf3 {[%clk 0:00:48]} 1-0


[Site "https://www.chess.com"]

[Event "Titled Tuesday Blitz May 9 Early 2023"]
[White "Rangel, Daniel"]
[Black "Antal, Gergely"]
[WhiteFideId "2124475"]
[BlackFideId "717312"]
[WhiteElo "2256"]
[BlackElo "2471"]
[Result "1-0"]
[Round "01"]
[TimeControl "180+2"]
[Date "2023.05.09"]
[WhiteClock "0:01:01"]
[BlackClock "0:00:00"]

1. c4 {[%clk 0:02:59]}  g6 {[%clk 0:02:56]} 2. g3 {[%clk 0:02:57]}  Bg7 {[%clk 0:02:56]} 3. Bg2 {[%clk 0:02:57]}  Nc6 {[%clk 0:02:56]} 4. e3 {[%clk 0:02:57]}  e5 {[%clk 0:02:56]} 5. Nc3 {[%clk 0:02:56]}  d6 {[%clk 0:02:56]} 6. Nge2 {[%clk 0:02:52]}  h5 {[%clk 0:02:56]} 7. h4 {[%clk 0:02:52]}  Bg4 {[%clk 0:02:55]} 8. Nd5 {[%clk 0:02:50]}  Nge7 {[%clk 0:02:52]} 9. Qa4 {[%clk 0:02:46]}  Bxe2 {[%clk 0:02:46]} 10. Kxe2 {[%clk 0:02:47]}  Qd7 {[%clk 0:02:41]} 11. Nxe7 {[%clk 0:02:43]}  Kxe7 {[%clk 0:02:42]} 12. b3 {[%clk 0:02:32]}  e4 {[%clk 0:02:32]} 13. Rb1 {[%clk 0:02:30]}  Qg4+ {[%clk 0:02:32]} 14. Ke1 {[%clk 0:02:27]}  Ne5 {[%clk 0:02:31]} 15. Ba3 {[%clk 0:02:06]}  Nd3+ {[%clk 0:02:29]} 16. Kf1 {[%clk 0:02:06]}  Qf5 {[%clk 0:01:22]} 17. f4 {[%clk 0:02:00]}  exf3 {[%clk 0:01:14]} 18. Bh3 {[%clk 0:02:00]}  Qe4 {[%clk 0:01:14]} 19. c5 {[%clk 0:01:37]}  Nxc5 {[%clk 0:01:04]} 20. Bxc5 {[%clk 0:01:29]}  Qxb1+ {[%clk 0:00:57]} 21. Kf2 {[%clk 0:01:27]}  Qxh1 {[%clk 0:00:58]} 22. Qe4+ {[%clk 0:01:15]}  Kf8 {[%clk 0:00:55]} 23. Qxb7 {[%clk 0:01:03]}  Qxh3 {[%clk 0:00:44]} 24. Qxa8+ {[%clk 0:01:02]}  Ke7 {[%clk 0:00:44]} 25. Qe4+ {[%clk 0:01:03]}  Qe6 {[%clk 0:00:45]} 26. Qxf3 {[%clk 0:01:02]}  dxc5 {[%clk 0:00:44]} 27. Qb7 {[%clk 0:01:03]}  Rd8 {[%clk 0:00:38]} 28. Qxc7+ {[%clk 0:01:01]}  Rd7 {[%clk 0:00:38]} 29. Qxc5+ {[%clk 0:01:02]}  Qd6 {[%clk 0:00:39]} 30. Qa5 {[%clk 0:01:00]}  Qxd2+ {[%clk 0:00:39]} 31. Qxd2 {[%clk 0:01:01]}  Rd3 {[%clk 0:00:00]} 32. Qxd3 {[%clk 0:01:01]} 1-0


[Site "https://www.chess.com"]

[Event "Titled Tuesday Blitz May 9 Early 2023"]
[White "Guerra Tulcan, Lenin"]
[Black "Korpics, Zsolt"]
[WhiteFideId "3601382"]
[BlackFideId "705241"]
[WhiteElo "2368"]
[BlackElo "2329"]
[Result "1/2-1/2"]
[Round "01"]
[TimeControl "180+2"]
[Date "2023.05.09"]
[WhiteClock "0:00:57"]
[BlackClock "0:00:21"]

1. e4 {[%clk 0:02:55]}  c5 {[%clk 0:02:59]} 2. Nf3 {[%clk 0:02:54]}  e6 {[%clk 0:02:59]} 3. d4 {[%clk 0:02:54]}  cxd4 {[%clk 0:02:59]} 4. Nxd4 {[%clk 0:02:55]}  Nc6 {[%clk 0:02:59]} 5. Nc3 {[%clk 0:02:55]}  Qc7 {[%clk 0:02:59]} 6. Ndb5 {[%clk 0:02:55]}  Qb8 {[%clk 0:02:59]} 7. Be3 {[%clk 0:02:52]}  Nf6 {[%clk 0:02:55]} 8. Be2 {[%clk 0:02:52]}  a6 {[%clk 0:02:55]} 9. Nd4 {[%clk 0:02:52]}  Bb4 {[%clk 0:02:52]} 10. Nxc6 {[%clk 0:02:49]}  bxc6 {[%clk 0:02:52]} 11. Qd3 {[%clk 0:02:49]}  d5 {[%clk 0:02:51]} 12. O-O {[%clk 0:02:43]}  O-O {[%clk 0:02:44]} 13. exd5 {[%clk 0:02:35]}  cxd5 {[%clk 0:02:39]} 14. Bg5 {[%clk 0:02:34]}  Bxc3 {[%clk 0:02:14]} 15. bxc3 {[%clk 0:02:32]}  Ne4 {[%clk 0:02:14]} 16. Be3 {[%clk 0:02:24]}  a5 {[%clk 0:02:11]} 17. Qd4 {[%clk 0:02:09]}  Qc7 {[%clk 0:02:04]} 18. Bd3 {[%clk 0:01:56]}  Qxc3 {[%clk 0:01:56]} 19. Qxc3 {[%clk 0:01:41]}  Nxc3 {[%clk 0:01:56]} 20. Bd4 {[%clk 0:01:41]}  Ne4 {[%clk 0:01:49]} 21. f3 {[%clk 0:01:41]}  Nf6 {[%clk 0:01:44]} 22. Rfb1 {[%clk 0:01:41]}  Ba6 {[%clk 0:01:43]} 23. Kf2 {[%clk 0:01:33]}  Rfc8 {[%clk 0:01:36]} 24. Rb2 {[%clk 0:01:27]}  Bxd3 {[%clk 0:01:36]} 25. cxd3 {[%clk 0:01:28]}  Nd7 {[%clk 0:01:36]} 26. Rb7 {[%clk 0:01:21]}  Nc5 {[%clk 0:01:22]} 27. Bxc5 {[%clk 0:01:21]}  Rxc5 {[%clk 0:01:23]} 28. Rab1 {[%clk 0:01:21]}  g6 {[%clk 0:01:22]} 29. Rb8+ {[%clk 0:01:18]}  Rxb8 {[%clk 0:01:22]} 30. Rxb8+ {[%clk 0:01:19]}  Kg7 {[%clk 0:01:23]} 31. Rb2 {[%clk 0:01:19]}  Kf6 {[%clk 0:01:18]} 32. Ke3 {[%clk 0:01:19]}  a4 {[%clk 0:00:26]} 33. g3 {[%clk 0:01:04]}  h5 {[%clk 0:00:24]} 34. Rb4 {[%clk 0:01:03]}  Ra5 {[%clk 0:00:23]} 35. f4 {[%clk 0:00:59]}  Ra7 {[%clk 0:00:23]} 36. a3 {[%clk 0:00:59]}  Ke7 {[%clk 0:00:23]} 37. Kd4 {[%clk 0:00:59]}  Kd6 {[%clk 0:00:24]} 38. Rb6+ {[%clk 0:00:58]}  Kc7 {[%clk 0:00:24]} 39. Rb4 {[%clk 0:00:58]}  Kd6 {[%clk 0:00:24]} 40. Rb8 {[%clk 0:00:59]}  Kc7 {[%clk 0:00:23]} 41. Rf8 {[%clk 0:00:56]}  Kd6 {[%clk 0:00:23]} 42. Rb8 {[%clk 0:00:56]}  Kc7 {[%clk 0:00:21]} 43. Rb4 {[%clk 0:00:57]}  Kd6 {[%clk 0:00:21]} 1/2-1/2


[Site "https://www.chess.com"]

[Event "Titled Tuesday Blitz May 9 Early 2023"]
[White "Avalos Parra, Joao"]
[Black "Ambartsumova, Karina"]
[WhiteFideId "3402541"]
[BlackFideId "4166299"]
[WhiteElo "2173"]
[BlackElo "2240"]
[Result "0-1"]
[Round "01"]
[TimeControl "180+2"]
[Date "2023.05.09"]
[WhiteClock "0:00:14"]
[BlackClock "0:00:40"]

1. d4 {[%clk 0:02:59]}  Nf6 {[%clk 0:02:59]} 2. c4 {[%clk 0:02:55]}  g6 {[%clk 0:02:59]} 3. Nc3 {[%clk 0:02:55]}  Bg7 {[%clk 0:03:00]} 4. e4 {[%clk 0:02:55]}  O-O {[%clk 0:03:00]} 5. Be2 {[%clk 0:02:56]}  d6 {[%clk 0:03:01]} 6. Be3 {[%clk 0:02:57]}  e5 {[%clk 0:02:59]} 7. d5 {[%clk 0:02:54]}  Na6 {[%clk 0:03:00]} 8. g4 {[%clk 0:02:45]}  Nc5 {[%clk 0:03:00]} 9. f3 {[%clk 0:02:40]}  a5 {[%clk 0:03:00]} 10. h4 {[%clk 0:02:30]}  h5 {[%clk 0:03:00]} 11. g5 {[%clk 0:02:25]}  Nh7 {[%clk 0:03:00]} 12. Qd2 {[%clk 0:02:20]}  a4 {[%clk 0:02:53]} 13. O-O-O {[%clk 0:02:19]}  Bd7 {[%clk 0:02:53]} 14. Nh3 {[%clk 0:02:10]}  Qe7 {[%clk 0:02:46]} 15. Nf2 {[%clk 0:02:10]}  f5 {[%clk 0:02:38]} 16. Nd3 {[%clk 0:02:00]}  b6 {[%clk 0:02:30]} 17. Bxc5 {[%clk 0:01:56]}  bxc5 {[%clk 0:02:28]} 18. Rdf1 {[%clk 0:01:52]}  Rfb8 {[%clk 0:02:28]} 19. Kc2 {[%clk 0:01:47]}  Nf8 {[%clk 0:02:28]} 20. Rb1 {[%clk 0:01:46]}  Rb7 {[%clk 0:02:26]} 21. Rhc1 {[%clk 0:01:43]}  Rab8 {[%clk 0:02:26]} 22. b3 {[%clk 0:01:40]}  axb3+ {[%clk 0:02:24]} 23. axb3 {[%clk 0:01:40]}  c6 {[%clk 0:02:16]} 24. Rb2 {[%clk 0:01:38]}  cxd5 {[%clk 0:02:11]} 25. Nxd5 {[%clk 0:01:39]}  Qf7 {[%clk 0:02:11]} 26. Ra1 {[%clk 0:01:37]}  Ne6 {[%clk 0:02:10]} 27. Ra3 {[%clk 0:01:23]}  Nd4+ {[%clk 0:02:10]} 28. Kc3 {[%clk 0:01:23]}  Be6 {[%clk 0:01:45]} 29. Ne1 {[%clk 0:01:22]}  fxe4 {[%clk 0:01:27]} 30. fxe4 {[%clk 0:01:21]}  Qf2 {[%clk 0:01:28]} 31. Bd1 {[%clk 0:01:13]}  Qxh4 {[%clk 0:01:20]} 32. Nc2 {[%clk 0:01:07]}  Bxd5 {[%clk 0:00:56]} 33. exd5 {[%clk 0:00:59]}  e4 {[%clk 0:00:56]} 34. Nxd4 {[%clk 0:00:46]}  cxd4+ {[%clk 0:00:55]} 35. Kc2 {[%clk 0:00:44]}  d3+ {[%clk 0:00:56]} 36. Kb1 {[%clk 0:00:44]}  Bxb2 {[%clk 0:00:55]} 37. Kxb2 {[%clk 0:00:43]}  Qg3 {[%clk 0:00:55]} 38. Ra6 {[%clk 0:00:41]}  Qe5+ {[%clk 0:00:51]} 39. Qc3 {[%clk 0:00:37]}  e3 {[%clk 0:00:39]} 40. Qxe5 {[%clk 0:00:30]}  dxe5 {[%clk 0:00:40]} 41. Rxg6+ {[%clk 0:00:31]}  Kh7 {[%clk 0:00:40]} 42. Rh6+ {[%clk 0:00:14]}  Kg7 {[%clk 0:00:40]} 0-1


[Site "https://www.chess.com"]

[Event "Titled Tuesday Blitz May 9 Early 2023"]
[White "cryptoguru02"]
[Black "Brueckner, Thomas"]
[BlackFideId "4600452"]
[WhiteElo "2608"]
[BlackElo "2322"]
[Result "1-0"]
[Round "01"]
[TimeControl "180+2"]
[Date "2023.05.09"]
[WhiteClock "0:00:27"]
[BlackClock "0:00:06"]

1. d4 {[%clk 0:03:00]}  Nf6 {[%clk 0:02:58]} 2. c4 {[%clk 0:03:00]}  e6 {[%clk 0:02:58]} 3. Nc3 {[%clk 0:03:00]}  Bb4 {[%clk 0:02:57]} 4. Qc2 {[%clk 0:03:00]}  d5 {[%clk 0:02:56]} 5. a3 {[%clk 0:03:00]}  Bxc3+ {[%clk 0:02:56]} 6. Qxc3 {[%clk 0:03:01]}  O-O {[%clk 0:02:56]} 7. Bg5 {[%clk 0:02:55]}  h6 {[%clk 0:02:55]} 8. Bh4 {[%clk 0:02:51]}  c5 {[%clk 0:02:48]} 9. dxc5 {[%clk 0:02:40]}  d4 {[%clk 0:02:41]} 10. Qc2 {[%clk 0:02:38]}  e5 {[%clk 0:02:21]} 11. Rd1 {[%clk 0:02:20]}  a5 {[%clk 0:02:19]} 12. e3 {[%clk 0:02:13]}  Nc6 {[%clk 0:02:16]} 13. Nf3 {[%clk 0:02:09]}  Qe7 {[%clk 0:02:10]} 14. exd4 {[%clk 0:01:57]}  exd4+ {[%clk 0:02:05]} 15. Be2 {[%clk 0:01:56]}  Re8 {[%clk 0:01:37]} 16. Bxf6 {[%clk 0:01:53]}  Qxf6 {[%clk 0:01:36]} 17. O-O {[%clk 0:01:51]}  Bf5 {[%clk 0:01:15]} 18. Bd3 {[%clk 0:01:43]}  Bxd3 {[%clk 0:01:05]} 19. Rxd3 {[%clk 0:01:33]}  Rad8 {[%clk 0:00:53]} 20. Rfd1 {[%clk 0:01:31]}  Qf5 {[%clk 0:00:52]} 21. h3 {[%clk 0:01:10]}  Qxc5 {[%clk 0:00:52]} 22. Qa4 {[%clk 0:01:05]}  Rd7 {[%clk 0:00:39]} 23. Nxd4 {[%clk 0:00:35]}  Red8 {[%clk 0:00:31]} 24. Nxc6 {[%clk 0:00:35]}  Rxd3 {[%clk 0:00:20]} 25. Nxd8 {[%clk 0:00:31]}  b5 {[%clk 0:00:06]} 26. Qc2 {[%clk 0:00:27]} 1-0


[Site "https://www.chess.com"]